Cogmind - Beta 14 @@@ ROGUE MODE // 2024.11.23 @ 19:40:56 Player: skye Result: Destroyed by Autobeam Turret with Autobeam Performance ------------- Evolutions (0) 0 Regions Visited (3) 600 Robots Destroyed (23) 115 Value Destroyed (573) 573 Prototype IDs (0) 0 Alien Tech Used (0) 0 Bonus (0) 0 TOTAL SCORE: 1288 Bonus ------- None Cogmind --------- Core Integrity 0/250 Matter 217/300 Energy 200/200 System Corruption 3% Temperature Cool (24) Movement Rolling (120) Ox1 Location -10/Subcaves Parts ------- > --- POWER (1) -------- Subdweller Power Source > --- PROPULSION (2) --- Subdweller Monowheel Subdweller Monowheel > --- UTILITY (2) ------ Large Storage Unit Signal Interpreter > --- WEAPON (2) ------- Assault Rifle Rocket Launcher > --- INVENTORY (15) --- Ion Engine Subdweller Power Source Light Nuclear Core Light Treads Light Treads Subdweller Monowheel Improved Heat Sink Medium Matter Pod (100) Subdweller Optics ECM Suite Core Shielding Hacking Suite Subdweller Machine Gun Mining Laser Mining Claw Peak State ------------ > --- POWER ------------ Subdweller Power Source > --- PROPULSION ------- Subdweller Monowheel Subdweller Monowheel > --- UTILITY ---------- Large Storage Unit Core Shielding > --- WEAPON ----------- Assault Rifle Rocket Launcher > --- INVENTORY -------- Ion Engine Subdweller Power Source Light Nuclear Core Light Treads Light Treads Subdweller Monowheel Improved Heat Sink Medium Matter Pod Subdweller Optics Signal Interpreter ECM Suite Hacking Suite Subdweller Machine Gun Mining Laser Mining Claw [Rating: 13] Favorites ----------- Power Ion Engine Engine Ion Engine Propulsion Light Treads Treads Light Treads Leg Aluminum Leg Wheel Subdweller Monowheel Utility Large Storage Unit Storage Large Storage Unit Processor Signal Interpreter Protection Core Shielding Weapon Assault Rifle Energy Gun EM Pulse Gun Ballistic Gun Assault Rifle Launcher Rocket Launcher Build | -11 -10 -10 -10 ------- Run | Yrd Mat Min Sub Slots Evolved . | . . . . Power . | . . . . Propulsion . | . . . . Utility . | . . . . Weapon . | . . . . Parts Attached 19 | 2 9 1 7 Power 4 | . 2 . 2 Engine 4 | . 2 . 2 Core . | . . . . Reactor . | . . . . Propulsion 5 | 2 1 . 2 Treads 3 | 2 1 . . Leg . | . . . . Wheel 2 | . . . 2 Hover . | . . . . Flight . | . . . . Utility 5 | . 3 . 2 Device . | . . . . Storage 2 | . 2 . . Processor 1 | . . . 1 Hackware . | . . . . Protection 2 | . 1 . 1 Artifact . | . . . . Weapon 5 | . 3 1 1 Energy Gun 1 | . 1 . . Energy Cannon . | . . . . Ballistic Gun 3 | . 2 1 . Ballistic Cannon . | . . . . Launcher 1 | . . . 1 Special Weapon . | . . . . Impact Weapon . | . . . . Slashing Weapon . | . . . . Piercing Weapon . | . . . . Special Melee Weapon . | . . . . Unidentified Prototypes . | . . . . Parts Lost 6 | . 1 . 5 Power 2 | . . . 2 Propulsion 2 | . . . 2 Utility . | . . . . Weapon 2 | . 1 . 1 Highest Loss Streak 3 | . 1 . 3 To Critical Strikes . | . . . . Average Slot Usage (%) 92 | . 91 91 93 Engine 13 | . 13 14 13 Treads 24 | . 28 28 16 Wheel 2 | . . . 6 Storage 14 | . 14 14 14 Protection 10 | . 9 14 10 Energy Gun 5 | . 10 . . Ballistic Gun 18 | . 14 19 24 Launcher 1 | . . . 3 Peak Build Rating 13 | 6 8 9 13 Average Rating 8 | 6 7 7 9 On Entrance 7 | 6 6 7 9 Naked Turns . | . . . . Heaviest Build 32 | 13 30 30 32 Greatest Support 40 | 40 40 40 40 Greatest Overweight (x) 8 | . . . 8 Average Overweight (x) . | . . . . Largest Inventory Capacity 15 | 8 15 15 15 Average Capacity 14 | 8 13 15 15 Most Carried 15 | 6 15 15 15 Average Carried 13 | 5 12 14 14 Final Capacity 15 | 8 15 15 15 Final Carried 15 | 4 15 15 15 Class Distribution -------------------- 91% | Mutant 8% | Scavenger-Mutant Dominant Class ---------------- Mutant | -10/Materials Mutant | -10/Mines Mutant | -10/Subcaves Resources | -11 -10 -10 -10 ----------- Run | Yrd Mat Min Sub Matter Collected 751 | 192 362 96 101 Remotely . | . . . . Salvage Created 816 | . 502 99 215 Parts 52 | . 33 4 15 Haulers Intercepted 1 | . 1 . . Recyclers Shooed 1 | . 1 . . Parts Field Recycled . | . . . . Retrieved Matter . | . . . . Parts Self-Destructed 3 | . . . 3 Prevented . | . . . . Kills | -11 -10 -10 -10 ------- Run | Yrd Mat Min Sub Combat Hostiles Destroyed 18 | . 11 2 5 Guns 14 | . 7 2 5 AOE 4 | . 4 . . Classes Destroyed 7 | . 6 . 1 Hauler 1 | . 1 . . Recycler 1 | . 1 . . Operator 1 | . 1 . . Watcher 2 | . 2 . . Swarmer 7 | . 6 . 1 Grunt 7 | . 5 2 . Subdweller 4 | . . . 4 Best Kill Streak 6 | . 6 1 2 Combat Bots Only 6 | . 6 1 2 Max Kills in Single Turn 2 | . 2 1 1 Gunslinging . | . . . . Exploded 2 | . 2 . . Melee . | . . . . Uniques/NPCs Destroyed . | . . . . Combat | -11 -10 -10 -10 -------- Run | Yrd Mat Min Sub Hostile Shots Fired 150 | . 68 13 69 Missed 46 | . 25 3 18 Damage Taken 1327 | . 520 147 660 Core 257 | . 130 38 89 Absorbed by Shields . | . . . . Redirected to Shielding 29 | . 7 8 14 Core Remaining (%) 100 | 100 . . . Volleys Fired 88 | . 48 14 26 Largest 2 | . 2 2 2 Hottest 60 | . 60 40 40 Shots Fired 138 | . 81 20 37 Gun 138 | . 81 20 37 Cannon . | . . . . Launcher . | . . . . Special . | . . . . Kinetic 105 | . 48 20 37 Thermal . | . . . . Explosive . | . . . . Electromagnetic 33 | . 33 . . Robot Hit Streak 7 | . 7 5 6 Robot Miss Streak 4 | . 4 2 4 Penetration Max . | . . . . Secondary Targets 1 | . 1 . . Max Gunslinging Chain 1 | . 1 . . Shots Hit Robots 86 | . 48 13 25 Core Hits 41 | . 27 4 10 Critical Kills 1 | . 1 . . Critical Parts Destroyed . | . . . . Critical Strikes 1 | . 1 . . Destroy 1 | . 1 . . Melee Attacks . | . . . . Impact . | . . . . Slashing . | . . . . Piercing . | . . . . Sneak Attacks . | . . . . Combat Hostiles . | . . . . Follow-up Attacks . | . . . . Damage Inflicted 1299 | . 773 177 349 Guns 1117 | . 593 177 347 Cannons . | . . . . Explosions 180 | . 180 . . Melee . | . . . . Ramming 2 | . . . 2 Kinetic 851 | . 327 177 347 Thermal 180 | . 180 . . Explosive . | . . . . Electromagnetic 266 | . 266 . . Impact . | . . . . Slashing . | . . . . Piercing . | . . . . Highest Corruption 3 | . 3 3 3 Average Corruption 2 | . 2 3 3 Corruption Purged . | . . . . Corruption Blocked . | . . . . Effects 36 | . 15 8 13 Message Errors 6 | . 2 1 3 Matter Fused 12 | . 6 3 3 Heat Flow Errors 2 | . 1 . 1 Energy Discharges 8 | . 3 2 3 Parts Rejected 1 | . 1 . . Parts Fused 1 | . . . 1 Data Loss (minor) 2 | . 1 1 . Data Loss (major) 2 | . 1 . 1 Misfires 2 | . . 1 1 Overload Shots . | . . . . Overflow Damage 8 | . 8 . . Projectiles . | . . . . Explosions 8 | . 8 . . Melee . | . . . . Knockbacks . | . . . . Impact . | . . . . Kinetic . | . . . . Secondary . | . . . . Self-Inflicted Damage 78 | . 77 . 1 Shots 2 | . 2 . . Rammed 2 | . 1 . 1 Targets Rammed 2 | . 1 . 1 Kicked . | . . . . Crushed . | . . . . Highest Temperature 153 | . 153 2 150 Average Temperature 45 | . 45 2 90 Received Heat Transfer 369 | . 129 84 156 Siege Activations . | . . . . Robots Corrupted . | . . . . Combat Hostiles . | . . . . Parts Fried . | . . . . Impact Corruptions . | . . . . Robots Melted . | . . . . Combat Hostiles . | . . . . Parts Melted 1 | . 1 . . Heat Transferred 300 | . 300 . . Parts Sabotaged . | . . . . Parts Stolen . | . . . . Parts Stripped . | . . . . Power Chain Reactions 4 | . 4 . . Alert | -11 -10 -10 -10 ------- Run | Yrd Mat Min Sub Peak Influence 214 | . 214 98 . Initial 33 | . . 33 . Average 94 | . 105 60 . Maximum Alert Level 1 | . 1 . . Low Security (%) 95 | 100 94 100 . Level 1 4 | . 5 . . Level 2 . | . . . . Level 3 . | . . . . Level 4 . | . . . . Level 5 . | . . . . High Security . | . . . . Max Security . | . . . . Squads Dispatched 1 | . 1 . . Investigation 1 | . 1 . . Extermination . | . . . . Reinforcement . | . . . . Assault . | . . . . Garrison . | . . . . Intercept . | . . . . Searches Triggered . | . . . . Construction Impeded . | . . . . Haulers Reinforced . | . . . . Active Scanning Responses . | . . . . Cargo Convoy Interrupts . | . . . . Stealth | -11 -10 -10 -10 --------- Run | Yrd Mat Min Sub Distress Signals . | . . . . Communications Jammed . | . . . . Distress Signals . | . . . . Times Spotted 33 | . 21 2 10 Peak Tracking Total 8 | . 8 2 6 Tactical Retreats 2 | . 1 . 1 Traps | -11 -10 -10 -10 ------- Run | Yrd Mat Min Sub Traps Triggered 3 | . 3 . . Indirectly . | . . . . Trap Hack Attempts . | . . . . Triggered . | . . . . Disarmed . | . . . . Reprogrammed . | . . . . Reused . | . . . . Traps Extracted . | . . . . Installed . | . . . . Triggered . | . . . . Machines | -11 -10 -10 -10 ---------- Run | Yrd Mat Min Sub Machines Disabled 1 | . 1 . . Max in Single Turn 1 | . 1 . . Machines Repaired . | . . . . Machines Dismantled . | . . . . Machines Sabotaged . | . . . . Overloaded Fab Kills . | . . . . Hacking | -11 -10 -10 -10 --------- Run | Yrd Mat Min Sub Machines Accessed 9 | . 8 1 . Terminals 8 | . 7 1 . Fabricators . | . . . . Repair Stations 1 | . 1 . . Recycling Units . | . . . . Scanalyzers . | . . . . Garrison Access . | . . . . Total Hacks 28 | . 27 1 . Successful 9 | . 9 . . Failed 19 | . 18 1 . Catastrophic 4 | . 3 1 . Database Lockouts . | . . . . Manual 27 | . 26 1 . Terminals 26 | . 25 1 . Fabricators . | . . . . Repair Stations 2 | . 2 . . Recycling Units . | . . . . Scanalyzers . | . . . . Garrison Access . | . . . . Terminal Hacks 2 | . 2 . . Part Schematic 2 | . 2 . . Fabricator Hacks . | . . . . Repair Station Hacks 1 | . 1 . . Scan Component 1 | . 1 . . Recycling Unit Hacks . | . . . . Scanalyzer . | . . . . Garrison Access Hacks . | . . . . Unauthorized Hacks 6 | . 6 . . Terminals 6 | . 6 . . Botnet 6 | . 6 . . Fabricators . | . . . . Repair Stations . | . . . . Recycling Units . | . . . . Scanalyzers . | . . . . Garrison Access . | . . . . Data Cores Recovered 1 | . 1 . . Used . | . . . . Hacking Detections 9 | . 8 1 . Full Trace Events 1 | . 1 . . Feedback Events 1 | . 1 . . Corruption 1 | . 1 . . Feedback Blocked . | . . . . Robot Schematics Acquired . | . . . . Robots Built . | . . . . Authchips . | . . . . Time . | . . . . Total Robot Build Rating . | . . . . Part Schematics Acquired 2 | . 2 . . Parts Built . | . . . . Authchips . | . . . . Time . | . . . . Total Part Build Rating . | . . . . Parts Repaired . | . . . . Time . | . . . . Parts Recycled . | . . . . Recycled Matter . | . . . . Retrieved Matter . | . . . . Retrieved Components . | . . . . Parts Scanalyzed . | . . . . Part Schematics Acquired . | . . . . Parts Damaged . | . . . . Bothacking | -11 -10 -10 -10 ------------ Run | Yrd Mat Min Sub Used RIF Installer . | . . . . Robots Hacked . | . . . . Non-combat . | . . . . Combat . | . . . . Robot Hacks Applied . | . . . . Relay Couplers Released . | . . . . Fabnet Peak Effective % . | . . . . Robots Rewired . | . . . . Allies Hacked . | . . . . Hacks Repelled . | . . . . Allies | -11 -10 -10 -10 -------- Run | Yrd Mat Min Sub Total Allies . | . . . . Largest Group . | . . . . Highest-Rated Group . | . . . . Highest-Rated Ally . | . . . . Total Orders . | . . . . Ally Attacks . | . . . . Total Damage . | . . . . Kills . | . . . . Allies Corrupted . | . . . . Allies Melted . | . . . . Intel | -11 -10 -10 -10 ------- Run | Yrd Mat Min Sub Robot Analysis Total . | . . . . Derelict Logs Recovered 2 | . . 2 . Drone Launches . | . . . . Drone Recoveries . | . . . . Exploration | -11 -10 -10 -10 ------------- Run | Yrd Mat Min Sub Turns Passed 2213 | 6 1115 362 730 Spaces Moved 1190 | 2 596 189 403 Core 1 | . . . 1 Treads 1056 | 2 596 189 269 Legs . | . . . . Wheels 133 | . . . 133 Hover . | . . . . Flight . | . . . . Fastest Speed 110 | 160 160 160 110 Average Speed 160 | 160 160 160 161 Slowest Speed 450 | 160 160 160 450 Overloaded Moves . | . . . . Propulsion Burnouts . | . . . . Robots Hopped . | . . . . Cave-ins Triggered . | . . . . Exploration Rate (%) 38 | 2 94 37 22 Regions Visited 3 Branch Regions 2 Pre-discovered Areas . | . . . . Known Exits Taken . | . . . . Unknown Exits Taken 3 | 1 1 1 . Scrap Searched 1 | . . 1 . Spaces Dug . | . . . . Terrain Destroyed 13 | . 13 . . Melee . | . . . . Projectile . | . . . . AOE 13 | . 13 . . Terrain Rammed . | . . . . Walls Destroyed . | . . . . Machines Disabled . | . . . . Actions | -11 -10 -10 -10 --------- Run | Yrd Mat Min Sub Total 1370 | 5 688 231 446 Wait 29 | . 7 21 1 Move 1187 | 1 595 188 403 Hop . | . . . . Pick Up 26 | . 17 4 5 Fast Attach 4 | . 1 . 3 Attach 6 | . 2 1 3 Detach 1 | . 1 . . Swap 9 | 2 6 . 1 Drop 18 | 2 10 3 3 Fire 88 | . 48 14 26 Melee . | . . . . Ram 1 | . . . 1 Kick . | . . . . Crush 1 | . 1 . . Escape Stasis . | . . . . Rewire . | . . . . Trap . | . . . . Miscellaneous . | . . . . Route ------- -11/Scrapyard -10/Materials (discovered 5 exits: [*Mat x3] / *Min x2) -10/Mines -10/Subcaves (discovered 2 exits: *Mat / *Rec) History --------- Turn | Location | Event 5 | -11/Scrapyard | Discovered new exit (range 1) 7 | -11/Scrapyard | Entered Materials 194 | -10/Materials | Discovered new exit (range 12) 313 | -10/Materials | Build established: Mutant 460 | -10/Materials | Discovered new exit (range 4) 611 | -10/Materials | Discovered new exit (range 4) 656 | -10/Materials | Discovered new exit (range 7) 845 | -10/Materials | Core integrity fell below 50% 983 | -10/Materials | Discovered new exit (range 12) 1122 | -10/Materials | Entered Mines 1129 | -10/Mines | Received a Rocket Launcher from a helpful Derelict 1205 | -10/Mines | Found a hidden stash of uninstalled traps 1385 | -10/Mines | Learned location of 1 exit from Materials 1471 | -10/Mines | Discovered new exit (range 9) 1484 | -10/Mines | Entered Subcaves 1485 | -10/Subcaves | Identified exit to Recycling 1999 | -10/Subcaves | Discovered new exit (range 10) 2023 | -10/Subcaves | Core integrity fell below 20% 2071 | -10/Subcaves | Lost 3 parts (1p1n1w) 2081 | -10/Subcaves | Identified exit to Materials 2196 | -10/Subcaves | Shifting Twisted Machinery released Sub. Machine Gun 2214 | -10/Subcaves | Destroyed by Autobeam Turret with Autobeam Last Messages --------------- 02040_ Lgt. Treads destroyed. 02041_ BT-41Z(R) destroyed. 02048_ Acquired Sub. Power Source. 02052_ Acquired 32 matter. 02057_ Acquired Sub. Machine Gun. 02062_ Acquired Sub. Monowheel. 02080_ System corrupted: FCS attempts to trigger Assault Rifle. 02080_ System corrupted: Assault Rifle misfires. 02081_ EXIT=IDENTIFIED: MATERIALS 02181_ Acquired 9 matter. 02185_ System corrupted: Heat flow error (+190). Sub. Machine Gun falls loose from the Twisted Machinery. 02199_ S-10 Pest springs to life. 02201_ Sub. Monowheel shoots sparks and powers down. 02202_ S-10 Pest destroyed. 02208_ Slammed into S-10 Pest. 02209_ Acquired 20 matter. Map ----- +----------------------------------------------------+ | ?????????????????????????????????????????????????? | | ?????????????????????????????????????????????????? | | ?????????????????????????????????????????????????? | | ?????????????????????????????????????????????????? | | ?????????????????????????????????????????????????? | | ?????????????????????????????????????????????????? | | ?????????????????????????????????????????????????? | | ?????????????????????????????????????????????????? | | ?###?????????????????????????????????????????????? | | ## #######???????????????????????????????????????? | | ## ##??????????????????????????????????????? | | ##?????????????????????????????????????? | | ## #?????????????????????????????????????? | | ### ####?????????????????????????????????????? | | ##?# ##????????????????????????????????????????? | | ##??# ##?????????????????????????????????????????? | | #???###????????????????????? ???????????????????? | | ##??#??????????????????????? ??????????????????? | | ## #??????????????????????? ##?????????????????? | | #?????????????#######??? " ??????????????????? | | ##????????????#""" "??# "#??????????????????? | | #????????????#" ??# #??????????????????? | | ##????????????#" ### ##?????????????????? | | #????????????##""t " #?????????????????? | | ##????????????#> s s #??##?????????????? | | ##????###???????#""t @""[ #??" #?????????????? | | #????## ##??????#" # "" ### "??????????????? | | ###???## # ##?????#" ##s"" # ##?????????????? | | ####### ## ##????#""" ??# "" # #?????????????? | | ## # ## # ##???######??# "" #?????????????? | | # ###### #####??###### " ## ##?????????????? | | #??## #### " ##??##??????????????? | | # # #???##### ## "" #???????????????????? | | ########???????## " #???????????????????? | | #??????????????# ## ##???????????????????? | | ###??????????????#### #####????????????????????? | | ##???????????????????## #????????????????????????? | | ??????????????????????###????????????????????????? | | ?????????????????????????????????????????????????? | | ?????????????????????????????????????????????????? | | ?????????????????????????????????????????????????? | | ?????????????????????????????????????????????????? | | ?????????????????????????????????????????????????? | | ?????????????????????????????????????????????????? | | ?????????????????????????????????????????????????? | | ?????????????????????????????????????????????????? | | ?????????????????????????????????????????????????? | | ?????????????????????????????????????????????????? | | ?????????????????????????????????????????????????? | | ?????????????????????????????????????????????????? | +----------------------------------------------------+ Best States ------------- Heat Dissipation 25 Energy Generation 15 Energy Capacity 250 Matter Stores 300 Matter Capacity 300 Sight Range 16 Terrain Scan Density 10 Core Shielding 20 Evasion (%) 40 Recoil Reduction 2 Item Schematics ----------------- Wheel | -10/Materials | Hacked Structural Scanner | -10/Materials | Hacked Robot Schematics ------------------ None Fabricated ------------ Nothing Alien Tech Used ----------------- None Achievements -------------- None Challenges ------------ None Game ------ Seed OvertunedMobileDeconstructor Manual? 0 Play Time 00:16:12 Cumulative 57.6 hours Start 2024.11.23 @ 19:28:06 End 2024.11.23 @ 19:40:56 Sessions 1 Manual Loads 0 Difficulty Rogue Special Mode None Game No. 79 Rogue 35 Adventurer 44 Explorer 0 Win Type - Total 0 Types 0/0/0/0/0/0/0/0/0 Lore% 18 Gallery% 44 Achievement% 32 Wizard Run 0 Options --------- Layout 1 ASCII 0 Keyboard 1 Movement Vi Keybinds 0 Fullscreen 1 Font 24/Terminus Map View 50x40 Zoom Use 0% Tactical HUD 1 Map Filters NONE Filters NONE Steam 1 RUN: bdf04cbe-3b62-4463-94a1-ce0e5c4537eb